fUSD/lending_fUSD_20240712
["ID","MTS","AMOUNT","RATE_DAILY","PERIOD"]
[331906896,1720827037114,-500.0,0.00013863,2]
[331906897,1720827037124,-500.0,0.00013863,2]
[331906898,1720827037134,-500.0,0.00013863,2]
[331906899,1720827037144,-500.0,0.00013863,2]
[331906900,1720827037153,-150.0,0.00013863,2]
[331906901,1720827037163,-500.0,0.00013863,2]
[331906902,1720827037172,-500.0,0.00013863,2]
[331906903,1720827037181,-500.0,0.00013863,2]
[331906904,1720827037191,-500.0,0.00013863,2]
[331906905,1720827037200,-500.0,0.00013863,2]
[331906906,1720827037210,-500.0,0.00013863,2]
[331906907,1720827037219,-500.0,0.00013863,2]
[331906908,1720827037229,-500.0,0.00013863,2]
[331906909,1720827037238,-1136.42,0.00013863,2]
[331906910,1720827037247,-500.0,0.00013863,2]
[331906911,1720827037257,-500.0,0.00013863,2]
[331906912,1720827037267,-500.0,0.00013863,2]
[331906913,1720827037276,-500.0,0.00013863,2]
[331906914,1720827037286,-500.0,0.00013863,2]
[331906915,1720827037295,-500.0,0.00013863,2]
[331906916,1720827037304,-500.0,0.00013863,2]
[331906917,1720827037314,-500.0,0.00013863,2]
[331906918,1720827037323,-500.0,0.00013863,2]
[331906919,1720827037332,-500.0,0.00013863,2]
[331906920,1720827037341,-500.0,0.00013863,2]
[331906921,1720827037353,-416.73582076,0.00013863,2]
[331906922,1720827037365,-83.26417924,0.00013863,2]
[331906923,1720827037375,-500.0,0.00013863,2]
[331906924,1720827037384,-500.0,0.00013863,2]
[331906925,1720827037394,-500.0,0.00013863,2]
[331906926,1720827037404,-500.0,0.00013863,2]
[331906927,1720827037413,-500.0,0.00013863,2]
[331906928,1720827037422,-500.0,0.00013863,2]
[331906929,1720827037431,-500.0,0.00013863,2]
[331906930,1720827037440,-500.0,0.00013863,2]
[331906931,1720827037450,-500.0,0.00013863,2]
[331906932,1720827037459,-500.0,0.00013863,2]
[331906933,1720827037469,-412.37133341,0.00013863,2]
[331906934,1720827037479,-500.0,0.00013863,2]
[331906935,1720827037488,-500.0,0.00013863,2]
[331906936,1720827037498,-500.0,0.00013863,2]
[331906937,1720827037508,-500.0,0.00013863,2]
[331906938,1720827037518,-500.0,0.00013863,2]
[331906939,1720827037527,-525.5378307,0.00013863,2]
[331906940,1720827037538,-500.0,0.00013863,2]
[331906941,1720827037547,-500.0,0.00013863,2]
[331906942,1720827037557,-500.0,0.00013863,2]
[331906943,1720827037566,-500.0,0.00013863,2]
[331906944,1720827037577,-500.0,0.00013863,2]
[331906945,1720827037587,-500.0,0.00013863,2]
[331906946,1720827037597,-500.0,0.00013863,2]
[331906947,1720827037607,-500.0,0.00013863,2]
[331906948,1720827037618,-500.0,0.00013863,2]
[331906949,1720827037629,-500.0,0.00013863,2]
[331906950,1720827037639,-500.0,0.00013863,2]
[331906951,1720827037649,-500.0,0.00013863,2]
[331906952,1720827037658,-3597.44,0.00013863,2]
[331906953,1720827037667,-500.0,0.00013863,2]
[331906954,1720827037677,-500.0,0.00013863,2]
[331906955,1720827037686,-500.0,0.00013863,2]
[331906956,1720827037696,-500.0,0.00013863,2]
[331906957,1720827037705,-2521.93,0.00013863,2]
[331906958,1720827037714,-500.0,0.00013863,2]
[331906959,1720827037724,-500.0,0.00013863,2]
[331906960,1720827037734,-500.0,0.00013863,2]
[331906961,1720827037743,-500.0,0.00013863,2]
[331906962,1720827037753,-500.0,0.00013873,2]
[331906963,1720827037762,-500.0,0.00013873,2]
[331906964,1720827037771,-500.0,0.00013873,2]
[331906965,1720827037780,-500.0,0.00013873,2]
[331906966,1720827037790,-500.0,0.00013873,2]
[331906967,1720827037800,-200.0,0.00013888,2]
[331906968,1720827037810,-227.32181018,0.00013899,2]
[331906969,1720827037819,-175.29870113,0.00013899,2]
[331906970,1720827037828,-163.33113184,0.000139,2]
[331906971,1720827037837,-175.98533304,0.000139,2]
[331906972,1720827037848,-12036.8063767,0.000139,3]
[331906973,1720827037858,-6627.8655289,0.000139,2]
[331906974,1720827037868,-1000.0,0.000139,2]
[331906975,1720827037877,-12036.8063767,0.00013907,3]
[331906976,1720827037886,-500.0,0.00013916,2]
[331906977,1720827037895,-538.29,0.00013916,2]
[331906978,1720827037905,-500.0,0.00013916,2]
[331906979,1720827037915,-500.0,0.00013916,2]
[331906980,1720827037924,-500.0,0.00013916,2]
[331906981,1720827037934,-500.0,0.00013916,2]
[331906982,1720827037944,-531.88,0.00013916,2]
[331906983,1720827037958,-500.0,0.00013916,2]
[331906984,1720827037967,-251.66017049,0.00013917,2]
[331906985,1720827037976,-500.0,0.00013917,2]
[331906986,1720827037987,-500.0,0.00013917,2]
[331906987,1720827037997,-500.0,0.00013917,2]
[331906988,1720827038006,-500.0,0.00013917,2]
[331906989,1720827038015,-500.0,0.00013917,2]
[331906990,1720827038027,-500.0,0.00013917,2]
[331906991,1720827038037,-500.0,0.00013917,2]
[331906992,1720827038047,-500.0,0.00013917,2]
[331906993,1720827038056,-500.0,0.00013917,2]
[331906994,1720827038065,-150.0,0.00013917,2]
[331906995,1720827038075,-500.0,0.00013917,2]
[331906996,1720827038084,-500.0,0.00013917,2]
[331906997,1720827038095,-647.02,0.00013917,2]
[331906998,1720827038106,-500.0,0.00013917,2]
[331906999,1720827038115,-500.0,0.00013917,2]
[331907000,1720827038126,-500.0,0.00013917,2]
[331907001,1720827038135,-500.0,0.00013917,2]
[331907002,1720827038146,-500.0,0.00013917,2]
[331907003,1720827038156,-1136.42,0.00013917,2]
[331907004,1720827038165,-500.0,0.00013917,2]
[331907005,1720827038174,-500.0,0.00013917,2]
[331907006,1720827038183,-500.0,0.00013917,2]
[331907007,1720827038194,-500.0,0.00013917,2]
[331907008,1720827038204,-500.0,0.00013917,2]
[331907009,1720827038213,-500.0,0.00013917,2]
[331907010,1720827038223,-500.0,0.00013917,2]
[331907011,1720827038232,-500.0,0.00013917,2]
[331907012,1720827038243,-500.0,0.00013917,2]
[331907013,1720827038254,-500.0,0.00013917,2]
[331907014,1720827038264,-500.0,0.00013917,2]
[331907015,1720827038273,-500.0,0.00013917,2]
[331907016,1720827038284,-511.75999083,0.00013917,2]
[331907017,1720827038295,-500.0,0.00013917,2]
[331907018,1720827038304,-223.3733685,0.00013917,2]
[331907019,1720827038314,-500.0,0.00013917,2]
[331907020,1720827038324,-500.0,0.00013917,2]
[331907021,1720827038333,-500.0,0.00013917,2]
[331907022,1720827038342,-500.0,0.00013917,2]
[331907023,1720827038353,-500.0,0.00013917,2]
[331907024,1720827038362,-500.0,0.00013917,2]
[331907025,1720827038371,-500.0,0.00013917,2]
[331907026,1720827038380,-214.82,0.00013917,2]
[331907027,1720827038389,-500.0,0.00013917,2]
[331907028,1720827038553,-500.0,0.00013917,2]
[331907029,1720827038563,-500.0,0.00013917,2]
[331907030,1720827038573,-500.0,0.00013917,2]
[331907031,1720827038582,-500.0,0.00013917,2]
[331907032,1720827038592,-500.0,0.00013917,2]
[331907033,1720827038603,-500.0,0.00013917,2]
[331907034,1720827038612,-500.0,0.00013917,2]
[331907035,1720827038622,-500.0,0.00013917,2]
[331907036,1720827038632,-500.0,0.00013917,2]
[331907037,1720827038641,-500.0,0.00013917,2]
[331907038,1720827038651,-500.0,0.00013917,2]
[331907039,1720827038661,-484.8127,0.00013917,2]
[331907040,1720827038671,-500.0,0.00013917,2]
[331907041,1720827038681,-500.0,0.00013917,2]
[331907042,1720827038690,-3597.44,0.00013917,2]
[331907043,1720827038700,-500.0,0.00013917,2]
[331907044,1720827038710,-500.0,0.00013917,2]
[331907045,1720827038719,-473.60087672,0.00013917,2]
[331907046,1720827038729,-401.93310557,0.00013917,2]
[331907047,1720827038739,-2521.93,0.00013917,2]
[331907048,1720827038750,-500.0,0.00013917,2]
[331907049,1720827038759,-500.0,0.00013917,2]
[331907050,1720827038769,-500.0,0.00013917,2]
[331907051,1720827038779,-500.0,0.00013917,2]
[331907052,1720827038788,-500.0,0.00013928,2]
[331907053,1720827038798,-500.0,0.00013928,2]
[331907054,1720827038807,-500.0,0.00013928,2]
[331907055,1720827038816,-500.0,0.00013928,2]
[331907056,1720827038825,-500.0,0.00013928,2]
[331907057,1720827038835,-12036.8063767,0.00013959,3]
[331907058,1720827038846,-165.68246613,0.00013959,2]
[331907059,1720827038855,-12036.8063767,0.00013961,3]
[331907060,1720827038865,-12036.8063767,0.00013962,3]
[331907061,1720827038875,-385.10220627,0.00013968,2]
[331907062,1720827038886,-36110.4191301,0.00013969,3]
[331907063,1720827038896,-538.29,0.00013971,2]
[331907064,1720827038907,-500.0,0.00013971,2]
[331907065,1720827038918,-500.0,0.00013971,2]
[331907066,1720827038929,-500.0,0.00013971,2]
[331907067,1720827038938,-500.0,0.00013971,2]
[331907068,1720827038951,-531.88,0.00013971,2]
[331907069,1720827038963,-500.0,0.00013971,2]
[331907070,1720827038974,-500.0,0.00013972,2]
[331907071,1720827038986,-500.0,0.00013972,2]
[331907072,1720827038997,-500.0,0.00013972,2]
[331907073,1720827039007,-500.0,0.00013972,2]
[331907074,1720827039018,-324.96710287,0.00013972,2]
[331907075,1720827039028,-500.0,0.00013972,2]
[331907076,1720827039037,-500.0,0.00013972,2]
[331907077,1720827039046,-500.0,0.00013972,2]
[331907080,1720827039056,-500.0,0.00013972,2]
[331907082,1720827039065,-150.0,0.00013972,2]
[331907084,1720827039075,-500.0,0.00013972,2]
[331907086,1720827039084,-590.9,0.00013972,2]
[331907089,1720827039093,-500.0,0.00013972,2]
[331907091,1720827039104,-500.0,0.00013972,2]
[331907092,1720827039113,-500.0,0.00013972,2]
[331907094,1720827039122,-500.0,0.00013972,2]
[331907096,1720827039132,-597.10498101,0.00013972,2]
[331907098,1720827039141,-1136.42,0.00013972,2]
[331907100,1720827039150,-500.0,0.00013972,2]
[331907102,1720827039159,-500.0,0.00013972,2]
[331907104,1720827039169,-500.0,0.00013972,2]
[331907106,1720827039178,-500.0,0.00013972,2]
[331907109,1720827039188,-500.0,0.00013972,2]
[331907111,1720827039197,-308.21101678,0.00013972,2]
[331907112,1720827039206,-500.0,0.00013972,2]
[331907114,1720827039215,-500.0,0.00013972,2]
[331907117,1720827039224,-500.0,0.00013972,2]
[331907119,1720827039234,-500.0,0.00013972,2]
[331907121,1720827039243,-500.0,0.00013972,2]
[331907123,1720827039252,-565.07,0.00013972,2]
[331907125,1720827039262,-500.0,0.00013972,2]
[331907127,1720827039271,-452.66087696,0.00013972,2]
[331907129,1720827039280,-500.0,0.00013972,2]
[331907131,1720827039289,-500.0,0.00013972,2]
[331907133,1720827039298,-500.0,0.00013972,2]
[331907134,1720827039307,-500.0,0.00013972,2]
[331907136,1720827039317,-500.0,0.00013972,2]
[331907138,1720827039326,-500.0,0.00013972,2]
[331907140,1720827039335,-500.0,0.00013972,2]
[331907142,1720827039344,-500.0,0.00013972,2]
[331907145,1720827039354,-528.15805458,0.00013972,2]
[331907146,1720827039363,-500.0,0.00013972,2]
[331907148,1720827039372,-500.0,0.00013972,2]
[331907150,1720827039382,-500.0,0.00013972,2]
[331907152,1720827039391,-500.0,0.00013972,2]
[331907154,1720827039400,-500.0,0.00013972,2]
[331907156,1720827039410,-500.0,0.00013972,2]
[331907158,1720827039419,-500.0,0.00013972,2]
[331907161,1720827039429,-500.0,0.00013972,2]
[331907163,1720827039439,-500.0,0.00013972,2]
[331907165,1720827039448,-500.0,0.00013972,2]
[331907167,1720827039458,-500.0,0.00013972,2]
[331907169,1720827039467,-3597.44,0.00013972,2]
[331907171,1720827039476,-500.0,0.00013972,2]
[331907173,1720827039486,-500.0,0.00013972,2]
[331907175,1720827039495,-2521.93,0.00013972,2]
[331907176,1720827039503,-500.0,0.00013972,2]
[331907178,1720827039514,-500.0,0.00013972,2]
[331907180,1720827039524,-500.0,0.00013972,2]
[331907183,1720827039533,-500.0,0.00013972,2]
[331907186,1720827039543,-12036.8063767,0.00013979,3]
[331907188,1720827039551,-3277.0,0.00013979,2]
[331907189,1720827039560,-549.0,0.00013979,2]
[331907190,1720827039569,-1990.0,0.00013979,2]
[331907191,1720827039579,-5792.0,0.00013979,2]
[331907192,1720827039588,-5181.0,0.00013979,2]
[331907193,1720827039597,-1664.0,0.00013979,2]
[331907194,1720827039606,-1200.0,0.00013979,2]
[331907195,1720827039616,-38275.0,0.00013979,2]
[331907196,1720827039626,-150.0,0.00013979,2]
[331907197,1720827039636,-144441.67652,0.0001398,3]
[331907198,1720827039646,-500.0,0.00013983,2]
[331907199,1720827039655,-500.0,0.00013983,2]
[331907200,1720827039665,-500.0,0.00013983,2]
[331907201,1720827039675,-500.0,0.00013983,2]
[331907203,1720827039686,-500.0,0.00013983,2]
[331907205,1720827039695,-246.98,0.00013984,2]
[331907207,1720827039704,-500.0,0.00013989,2]
[331907209,1720827039713,-500.0,0.00013989,2]
[331907211,1720827039722,-500.0,0.00013989,2]
[331907213,1720827039733,-500.0,0.00013989,2]
[331907215,1720827039742,-500.0,0.00013989,2]
[331907217,1720827039750,-500.0,0.00013989,2]
[331907219,1720827039759,-500.0,0.00013989,2]
[331907221,1720827039769,-500.0,0.00013989,2]
[331907223,1720827039778,-158.61302601,0.00013989,2]
[331907225,1720827039788,-72220.8382602,0.0001399,3]
[331907228,1720827039799,-450.20947625,0.0001399,2]
[331907229,1720827039809,-450.20947625,0.0001399,2]
[331907232,1720827039821,-1325.45972904,0.00013997,2]
[331907234,1720827039832,-7804.7521801,0.00013998,2]
[331907236,1720827039844,-1622.4,0.00013999,2]
[331907238,1720827039854,-685.59413237,0.00013999,2]
[331907240,1720827039864,-242.43380697,0.00013999,2]
[331907242,1720827039874,-474.52583922,0.00013999,2]
[331907245,1720827039885,-107808.36413521,0.00014,2]
[331907265,1720827040075,-286.181922,0.0001164,2]
[331907267,1720827040085,-153.62,0.00012004,2]
[331907269,1720827040095,-945.20224638,0.00013574,2]
[331907271,1720827040104,-227.32181018,0.00013889,2]
[331907273,1720827040114,-101.69933038,0.00013979,2]
[331907275,1720827040125,-2275.30066962,0.00013979,2]
[331907277,1720827040134,-685.59413237,0.00013999,2]
[331907279,1720827040143,-8090.20191003,0.00014,2]
[331907282,1720827040155,-473.3383626,0.00014,2]
[331907284,1720827040167,-1797.40236453,0.00014,2]
[331907286,1720827040179,-600.5,0.00014,2]
[331907289,1720827040191,-372.94911677,0.00014,2]
[331907292,1720827040212,-1114.04420081,0.00013979,2]
[331907294,1720827040225,-138.95579919,0.00013979,2]
[331907296,1720827040234,-4522.82128131,0.00014,2]
[331907298,1720827040245,-600.96056067,0.00014,2]
[331907301,1720827040259,-1465.41185795,0.00014,2]
[331907303,1720827040272,-32332.34669367,0.00014,2]
[331907305,1720827040284,-825.15284921,0.00014,2]
[331907308,1720827040298,-1595.00618646,0.00014,2]
[331907310,1720827040309,-1950.0,0.00014,2]
[331907312,1720827040322,-158180.79394596,0.00014,2]
[331907315,1720827040336,-1661.8907034,0.00014,2]
[331907467,1720827041786,2834.29298485,0.00011199,2]
[331907592,1720827042871,-6069.28380622,0.00014,2]
[331907594,1720827042884,-3034.69999998,0.00014,2]
[331907597,1720827042896,-357.69482547,0.00014,2]
[331907747,1720827044494,-126122.98139696,0.00014,2]
[331907750,1720827044515,-507.53028692,0.00014,2]
[331907866,1720827045712,-621.66229818,0.00013574,2]
[331907868,1720827045723,-1673.90953421,0.00013574,2]
[331907870,1720827045735,-712.46780598,0.00013574,2]
[331907872,1720827045746,-525.57482311,0.00013574,2]
[331907877,1720827045781,-362.68407531,0.00013574,2]
[331907884,1720827045847,-300271.81773756,0.00013574,2]
[331907890,1720827045900,-3930.81363626,0.00013574,2]
[331907896,1720827045959,-429.34971866,0.00013574,2]
[331907898,1720827045971,-775.81684516,0.00013574,2]
[331907978,1720827450030,227.32181018,0.00011199,2]
[331907979,1720827459539,263.75418329,0.00011199,2]
[331907981,1720827532875,450.05,0.00011064,2]
[331907983,1720827578869,1286.76187843,0.00011199,2]
[331907986,1720827827641,240.71002776,0.00011199,2]
[331907987,1720827887406,275.29411076,0.00011199,2]
[331907988,1720827893131,227.32181018,0.00011199,2]
[331908144,1720827971342,2825.09250178,0.00011199,2]
[331908155,1720828089017,447.55,0.00010861,2]
[331908214,1720828231846,-227.32181018,0.00012314,2]
[331908215,1720828231856,-155.0,0.00012314,2]
[331908216,1720828231866,-13.92711471,0.00012469,2]
[331908217,1720828231898,-1373.80616029,0.00012469,2]
[331908218,1720828231907,-164.89653503,0.00012532,2]
[331908219,1720828231917,-185.23,0.00012596,2]
[331908220,1720828231926,-23389.35,0.00012614,2]
[331908221,1720828231936,-200.0,0.00012629,2]
[331908222,1720828231946,-5022.33,0.00012632,2]
[331908223,1720828231956,-164.89653501,0.00012702,2]
[331908224,1720828231965,-250.0,0.0001275,2]
[331908225,1720828231974,-250.0,0.00012761,2]
[331908226,1720828231984,-2761.3726,0.00012781,2]
[331908227,1720828231993,-1126.3595,0.00012781,2]
[331908228,1720828232002,-150.0,0.00012795,2]
[331908229,1720828232012,-276.39,0.00012824,2]
[331908230,1720828232021,-164.89653501,0.00012871,2]
[331908231,1720828232030,-499.99,0.0001288,2]
[331908232,1720828232039,-150.0,0.0001288,2]
[331908233,1720828232049,-150.99,0.00012881,2]
[331908234,1720828232058,-150.99,0.00012881,2]
[331908236,1720828232068,-500.0,0.00012881,2]
[331908238,1720828232077,-417.495,0.00012881,2]
[331908240,1720828232088,-38459.2002523,0.00012881,2]
[331908242,1720828232099,-25559.9351049,0.00012881,2]
[331908243,1720828232111,-977.41231243,0.00012881,2]
[331908245,1720828232128,-286.18192272,0.00012881,2]
[331908246,1720828232139,-22193.63280765,0.00012881,2]
[331908247,1720828232149,-1000.0,0.00012981,2]
[331908248,1720828232158,-1250.0,0.00013,2]
[331908249,1720828232168,-164.89653501,0.00013041,2]
[331908250,1720828232177,-832.43,0.000131,2]
[331908251,1720828232187,-838.97,0.000131,2]
[331908252,1720828232197,-1709.86,0.000131,2]
[331908253,1720828232206,-419.54,0.000131,2]
[331908254,1720828232215,-234.11,0.000131,2]
[331908255,1720828232225,-838.86,0.000131,2]
[331908256,1720828232234,-447.55,0.00013125,2]
[331908257,1720828232243,-832.43,0.00013141,2]
[331908258,1720828232252,-419.54,0.00013141,2]
[331908259,1720828232262,-872.84,0.00013141,2]
[331908260,1720828232271,-419.54,0.00013141,2]
[331908261,1720828232285,-150.0,0.00013178,2]
[331908262,1720828232294,-150.0,0.00013178,2]
[331908263,1720828232304,-150.0,0.00013178,2]
[331908264,1720828232314,-419.54,0.000132,2]
[331908265,1720828232325,-710.5,0.00013287,2]
[331908266,1720828232334,-150.0,0.000134,2]
[331908267,1720828232343,-292.50326117,0.00013472,2]
[331908268,1720828232352,-150.0,0.00013489,2]
[331908269,1720828232529,-500.0,0.00013698,2]
[331908270,1720828232541,-500.0,0.00013698,2]
[331908271,1720828232552,-500.0,0.00013698,2]
[331908272,1720828232563,-500.0,0.00013698,2]
[331908273,1720828232573,-500.0,0.00013698,2]
[331908274,1720828232584,-500.0,0.00013698,2]
[331908275,1720828232593,-515.22,0.00013698,2]
[331908276,1720828232603,-628.93,0.00013698,2]
[331908277,1720828232612,-243.0,0.00013698,2]
[331908278,1720828232622,-500.0,0.00013698,2]
[331908279,1720828232632,-500.0,0.00013698,2]
[331908280,1720828232641,-500.0,0.00013698,2]
[331908281,1720828232650,-500.0,0.00013698,2]
[331908282,1720828232660,-500.0,0.00013698,2]
[331908283,1720828232669,-500.0,0.00013698,2]
[331908284,1720828232679,-500.0,0.00013698,2]
[331908285,1720828232689,-500.0,0.00013698,2]
[331908286,1720828232699,-500.0,0.00013698,2]
[331908287,1720828232709,-500.0,0.00013698,2]
[331908288,1720828232721,-171.02077713,0.00013698,2]
[331908289,1720828232732,-500.0,0.00013698,2]
[331908290,1720828232742,-370.15,0.00013698,2]
[331908291,1720828232753,-218.42,0.00013698,2]
[331908292,1720828232762,-490.29,0.00013698,2]
[331908293,1720828232773,-262.75,0.00013698,2]
[331908294,1720828232783,-620.84,0.00013698,2]
[331908295,1720828232794,-500.0,0.00013698,2]
[331908296,1720828232804,-500.0,0.00013698,2]
[331908297,1720828232816,-500.0,0.00013698,2]
[331908298,1720828232826,-500.0,0.00013698,2]
[331908299,1720828232837,-500.0,0.00013698,2]
[331908300,1720828232848,-167.52,0.00013698,2]
[331908301,1720828232858,-500.0,0.00013698,2]
[331908302,1720828232868,-313.59782456,0.00013698,2]
[331908303,1720828232878,-428.17683411,0.00013698,2]
[331908304,1720828232888,-500.0,0.00013698,2]
[331908305,1720828232897,-374.23,0.00013699,2]
[331908306,1720828232906,-1670.74,0.00013699,2]
[331908307,1720828232915,-250.0,0.00013699,2]
[331908308,1720828232925,-1200.0,0.000137,2]
[331908309,1720828232935,-2809.947,0.00013704,2]
[331908310,1720828232944,-150.0,0.00013728,2]
[331908311,1720828232954,-150.0,0.00013729,2]
[331908312,1720828232963,-150.0,0.00013729,2]
[331908313,1720828232973,-150.0,0.00013732,2]
[331908314,1720828232982,-300.0,0.00013749,2]
[331908315,1720828232992,-500.0,0.00013753,2]
[331908316,1720828233001,-500.0,0.00013753,2]
[331908317,1720828233011,-500.0,0.00013753,2]
[331908318,1720828233020,-560.69,0.00013753,2]
[331908319,1720828233029,-500.0,0.00013753,2]
[331908320,1720828233038,-500.0,0.00013753,2]
[331908321,1720828233049,-500.0,0.00013753,2]
[331908322,1720828233058,-500.0,0.00013753,2]
[331908323,1720828233069,-500.0,0.00013753,2]
[331908324,1720828233078,-500.0,0.00013753,2]
[331908325,1720828233088,-500.0,0.00013753,2]
[331908326,1720828233097,-500.0,0.00013753,2]
[331908327,1720828233107,-500.0,0.00013753,2]
[331908328,1720828233116,-474.58573309,0.00013753,2]
[331908329,1720828233125,-500.0,0.00013753,2]
[331908330,1720828233135,-500.0,0.00013753,2]
[331908331,1720828233144,-500.0,0.00013753,2]
[331908332,1720828233154,-500.0,0.00013753,2]
[331908333,1720828233163,-500.0,0.00013753,2]
[331908334,1720828233172,-150.0,0.00013763,2]
[331908335,1720828233181,-150.0,0.00013774,2]
[331908336,1720828233190,-163.33113184,0.0001379,2]
[331908337,1720828233199,-163.33113184,0.0001379,2]
[331908338,1720828233208,-500.0,0.00013808,2]
[331908339,1720828233217,-500.0,0.00013808,2]
[331908340,1720828233227,-606.62942452,0.00013808,2]
[331908341,1720828233236,-500.0,0.00013808,2]
[331908342,1720828233246,-500.0,0.00013808,2]
[331908343,1720828233255,-500.0,0.00013808,2]
[331908344,1720828233264,-500.0,0.00013808,2]
[331908345,1720828233276,-500.0,0.00013808,2]
[331908346,1720828233286,-500.0,0.00013808,2]
[331908347,1720828233296,-500.0,0.00013808,2]
[331908348,1720828233306,-500.0,0.00013808,2]
[331908349,1720828233315,-500.0,0.00013808,2]
[331908350,1720828233325,-500.0,0.00013808,2]
[331908351,1720828233334,-500.0,0.00013808,2]
[331908352,1720828233343,-500.0,0.00013808,2]
[331908353,1720828233353,-500.0,0.00013808,2]
[331908354,1720828233362,-443.21277542,0.00013808,2]
[331908355,1720828233371,-150.0,0.0001381,2]
[331908356,1720828233380,-150.0,0.00013826,2]
[331908357,1720828233390,-1500.0,0.00013827,2]
[331908358,1720828233398,-150.0,0.0001383,2]
[331908359,1720828233407,-1500.0,0.00013832,2]
[331908360,1720828233417,-150.0,0.00013834,2]
[331908361,1720828233426,-150.0,0.00013838,2]
[331908362,1720828233437,-150.0,0.00013852,2]
[331908363,1720828233446,-500.0,0.00013862,2]
[331908364,1720828233455,-500.0,0.00013862,2]
[331908365,1720828233465,-500.0,0.00013862,2]
[331908366,1720828233474,-500.0,0.00013862,2]
[331908367,1720828233483,-500.0,0.00013862,2]
[331908368,1720828233493,-500.0,0.00013862,2]
[331908369,1720828233502,-500.0,0.00013862,2]
[331908370,1720828233511,-500.0,0.00013862,2]
[331908371,1720828233520,-500.0,0.00013862,2]
[331908372,1720828233529,-500.0,0.00013862,2]
[331908373,1720828233539,-500.0,0.00013862,2]
[331908374,1720828233547,-1973.72,0.00013862,2]
[331908375,1720828233557,-500.0,0.00013862,2]
[331908376,1720828233566,-500.0,0.00013862,2]
[331908377,1720828233576,-500.0,0.00013862,2]
[331908378,1720828233585,-500.0,0.00013863,2]
[331908379,1720828233594,-176.35596316,0.00013863,2]
[331908380,1720828233603,-500.0,0.00013863,2]
[331908381,1720828233613,-500.0,0.00013863,2]
[331908382,1720828233622,-541.76325749,0.00013863,2]
[331908383,1720828233632,-150.0,0.00013863,2]
[331908384,1720828233641,-150.0,0.00013863,2]
[331908385,1720828233651,-500.0,0.00013863,2]
[331908386,1720828233660,-500.0,0.00013863,2]
[331908387,1720828233669,-615.43923521,0.00013863,2]
[331908388,1720828233679,-500.0,0.00013863,2]
[331908389,1720828233690,-500.0,0.00013863,2]
[331908390,1720828233700,-500.0,0.00013863,2]
[331908391,1720828233710,-500.0,0.00013863,2]
[331908392,1720828233721,-500.0,0.00013863,2]
[331908393,1720828233730,-500.0,0.00013863,2]
[331908394,1720828233740,-500.0,0.00013863,2]
[331908395,1720828233749,-150.0,0.00013869,2]
[331908396,1720828233759,-150.0,0.00013885,2]
[331908397,1720828233768,-1500.0,0.00013887,2]
[331908398,1720828233777,-200.0,0.00013888,2]
[331908399,1720828233786,-299.1423514,0.00013889,2]
[331908400,1720828233797,-154.1789908,0.0001389,2]
[331908401,1720828233807,-150.0,0.00013891,2]